bitfinex/quotes_BTCUSD_20250825
["timestamp","ask_amount","ask_price","bid_price","bid_amount"]
[1756101004787,1.76791647,112660.0,112650.0,0.00255546]
[1756101004997,1.76795647,112660.0,112650.0,0.00048546]
[1756101006596,0.62838815,112660.0,112650.0,0.00255546]
[1756101006823,1.76271647,112660.0,112650.0,0.00567546]
[1756101007033,1.76271647,112660.0,112650.0,0.00255546]
[1756101007244,1.76483647,112660.0,112650.0,0.00255546]
[1756101007460,1.76795647,112660.0,112650.0,0.00255546]
[1756101007892,1.61731647,112660.0,112650.0,0.00255546]
[1756101008105,1.76791647,112660.0,112650.0,0.00255546]
[1756101008331,1.78440172,112660.0,112650.0,0.00255546]
[1756101008545,1.84938203,112660.0,112650.0,0.00255546]
[1756101008758,1.78440172,112660.0,112650.0,0.00255546]
[1756101009102,1.63380172,112660.0,112650.0,0.00048546]
[1756101009312,1.78440172,112660.0,112650.0,0.00048546]
[1756101010368,0.8007134,112660.0,112650.0,0.00260546]
[1756101010579,1.60687643,112660.0,112650.0,0.00260546]
[1756101010786,1.78440172,112660.0,112650.0,0.00260546]
[1756101011200,1.78440172,112660.0,112650.0,0.00048546]
[1756101011627,1.62856172,112660.0,112650.0,0.00260546]
[1756101011839,0.7271934,112660.0,112650.0,0.00573546]
[1756101012049,1.31381361,112660.0,112650.0,0.00573546]
[1756101012688,1.65381361,112660.0,112650.0,0.00573546]
[1756101012904,1.31381361,112660.0,112650.0,0.00573546]
[1756101013141,1.32931373,112660.0,112650.0,0.00573546]
[1756101013333,1.32831373,112660.0,112650.0,0.00573546]
[1756101013756,0.34462541,112660.0,112650.0,0.00573546]
[1756101013976,1.32831373,112660.0,112650.0,0.00573546]
[1756101014262,1.17771373,112660.0,112650.0,0.00573546]
[1756101014475,1.32831373,112660.0,112650.0,0.19262021]
[1756101014678,1.17771373,112660.0,112650.0,0.22967779]
[1756101014892,1.32831373,112660.0,112650.0,0.22967779]
[1756101015116,0.17752529,112660.0,112650.0,0.22967779]
[1756101016794,0.17752529,112660.0,112650.0,0.42466786]
[1756101017016,1.32570521,112670.0,112660.0,0.1]
[1756101017225,1.32570521,112670.0,112660.0,0.22972663]
[1756101017430,1.32570521,112670.0,112660.0,0.23285663]
[1756101018428,1.32768521,112670.0,112660.0,0.22972663]
[1756101018629,1.33086521,112670.0,112660.0,0.1]
[1756101019992,1.31379212,112670.0,112660.0,0.10212]
[1756101021407,1.31697212,112670.0,112660.0,0.10212]
[1756101021824,1.31697212,112670.0,112660.0,0.10525]
[1756101021825,0.3281238,112670.0,112660.0,0.10525]
[1756101022054,0.1775238,112670.0,112660.0,0.19213475]
[1756101026697,0.1775238,112670.0,112660.0,0.19413475]
[1756101027653,0.1775238,112670.0,112660.0,0.19513475]
[1756101028489,0.1775238,112670.0,112660.0,0.37266004]
[1756101028824,0.20916275,112680.0,112660.0,0.37266004]
[1756101029037,0.20028807,112680.0,112670.0,0.19001475]
[1756101029245,0.20028807,112680.0,112670.0,0.19213475]
[1756101030124,0.20028807,112680.0,112670.0,0.36964429]
[1756101030342,1.18397639,112680.0,112670.0,0.36964429]
[1756101030678,1.18397639,112680.0,112670.0,0.19213475]
[1756101030869,1.18397639,112680.0,112670.0,0.24600166]
[1756101031843,1.17008434,112680.0,112670.0,0.24600166]
[1756101032245,0.18639602,112680.0,112670.0,0.24600166]
[1756101032455,1.17008434,112680.0,112670.0,0.24600166]
[1756101032658,1.17008434,112680.0,112670.0,0.24387166]
[1756101032942,1.17524434,112680.0,112670.0,0.24387166]
[1756101033752,1.17206434,112680.0,112670.0,0.24387166]
[1756101033961,1.17008434,112680.0,112670.0,0.24387166]
[1756101034562,1.17008434,112680.0,112670.0,0.24487166]
[1756101034759,1.17206434,112680.0,112670.0,0.24487166]
[1756101034979,1.17524434,112680.0,112670.0,0.24487166]
[1756101035567,0.92897611,112680.0,112670.0,0.24487166]
[1756101035773,1.07945611,112680.0,112670.0,0.24487166]
[1756101035977,0.92897611,112680.0,112670.0,0.24487166]
[1756101036178,1.10331914,112680.0,112670.0,0.24487166]
[1756101036589,1.10649914,112680.0,112670.0,0.18888475]
[1756101036835,2.09018746,112680.0,112670.0,0.08888475]
[1756101037269,2.43931088,112680.0,112670.0,0.002]
[1756101038428,2.46599688,112680.0,112670.0,0.002]
[1756101038703,2.46599688,112680.0,112670.0,0.001]
[1756101038935,0.17752529,112660.0,112650.0,0.10048546]
[1756101039132,1.31511361,112660.0,112650.0,0.11057401]
[1756101039400,1.31829361,112660.0,112650.0,0.11057401]
[1756101039602,1.31829361,112660.0,112650.0,0.11263401]
[1756101040589,1.33218651,112660.0,112650.0,0.11363401]
[1756101040832,1.32900651,112660.0,112650.0,0.11363401]
[1756101041067,1.16615361,112660.0,112650.0,0.11363401]
[1756101041302,1.31803361,112660.0,112650.0,0.11363401]
[1756101041535,1.31803361,112660.0,112650.0,0.11463401]
[1756101042025,1.31803361,112660.0,112650.0,0.11257401]
[1756101043219,1.16615361,112660.0,112650.0,0.11257401]
[1756101044389,1.1800466,112660.0,112650.0,0.11257401]
[1756101045049,1.3318466,112660.0,112650.0,0.11257401]
[1756101045498,0.34815828,112660.0,112650.0,0.01257401]
[1756101045707,1.3318466,112660.0,112650.0,0.11257401]
[1756101046134,1.3320466,112660.0,112650.0,0.11257401]
[1756101046342,1.3320466,112660.0,112650.0,0.11463401]
[1756101046761,1.3320466,112660.0,112650.0,0.11257401]
[1756101047589,1.1800466,112660.0,112650.0,0.11257401]
[1756101047798,1.3320466,112660.0,112650.0,0.00248546]
[1756101049467,1.3320466,112660.0,112650.0,0.10248546]
[1756101049682,1.3320466,112660.0,112650.0,0.00248546]
[1756101049683,2.65573492,112660.0,112650.0,0.00248546]
[1756101049892,2.70539005,112660.0,112650.0,0.00248546]
[1756101050111,2.76931067,112660.0,112650.0,0.00248546]
[1756101050319,2.85618032,112660.0,112650.0,0.00248546]
[1756101050753,2.85618032,112660.0,112650.0,0.00148546]
[1756101050960,2.85618032,112660.0,112650.0,0.00048546]
[1756101051188,2.84428733,112660.0,112650.0,0.00048546]
[1756101051391,2.84628733,112660.0,112650.0,0.00048546]
[1756101051816,2.79782866,112660.0,112650.0,0.00048546]
[1756101052240,2.79982866,112660.0,112650.0,0.00048546]
[1756101054460,2.8137239,112660.0,112650.0,0.00048546]
[1756101055288,2.6617239,112660.0,112650.0,0.00048546]
[1756101055495,2.8170439,112660.0,112650.0,0.00048546]
[1756101055926,3.2638839,112660.0,112650.0,0.00048546]
[1756101056289,3.2637239,112660.0,112650.0,0.00048546]
[1756101056598,3.35059355,112660.0,112650.0,1e-08]
[1756101058481,2.8153239,112660.0,112650.0,1e-08]
[1756101059869,2.6025485,112660.0,112650.0,1e-08]
[1756101060120,2.62491379,112660.0,112650.0,1e-08]
[1756101060315,2.8139139,112660.0,112650.0,1e-08]
[1756101061147,2.64501866,112660.0,112650.0,1e-08]
[1756101061343,2.79997866,112660.0,112650.0,1e-08]
[1756101061893,2.73484831,112660.0,112650.0,1e-08]
[1756101062102,2.80293866,112660.0,112650.0,1e-08]
[1756101064535,2.81683417,112660.0,112650.0,1e-08]
[1756101064853,0.51754105,112650.0,112640.0,1e-08]
[1756101064975,2.79496244,112650.0,112640.0,1e-08]
[1756101065193,0.8326758,112650.0,112640.0,1e-08]
[1756101065395,0.8325958,112650.0,112640.0,1e-08]
[1756101065634,0.8592918,112650.0,112640.0,1e-08]
[1756101065807,0.78914377,112650.0,112640.0,1e-08]
[1756101066008,0.94394377,112650.0,112640.0,1e-08]
[1756101066403,0.94390377,112650.0,112640.0,1e-08]
[1756101066825,0.94590377,112650.0,112640.0,1e-08]
[1756101067245,0.79114377,112650.0,112640.0,1e-08]
[1756101067457,0.94586377,112650.0,112640.0,1e-08]
[1756101068530,0.94582377,112650.0,112640.0,1e-08]
[1756101068977,0.79114377,112650.0,112640.0,1e-08]
[1756101069181,0.94574377,112650.0,112640.0,1e-08]
[1756101073430,0.79114377,112650.0,112640.0,1e-08]
[1756101073649,0.94574377,112650.0,112640.0,1e-08]
[1756101074306,0.9596406,112650.0,112640.0,1e-08]
[1756101074522,0.9566806,112650.0,112640.0,1e-08]
[1756101074951,0.87202863,112650.0,112640.0,1e-08]
[1756101076111,0.71742863,112650.0,112640.0,1e-08]
[1756101076338,0.87194863,112650.0,112640.0,1e-08]
[1756101077370,0.88021329,112650.0,112640.0,1e-08]
[1756101077571,0.89926292,112650.0,112640.0,1e-08]
[1756101077726,0.98928257,112650.0,112640.0,1e-08]
[1756101079605,0.99549147,112650.0,112640.0,1e-08]
[1756101082821,0.98159464,112650.0,112640.0,1e-08]
[1756101084283,0.9733318,112650.0,112640.0,1e-08]
[1756101084489,0.98161356,112650.0,112640.0,1e-08]
[1756101084935,1.10539876,112650.0,112640.0,1e-08]
[1756101085342,1.11929639,112650.0,112640.0,1e-08]
[1756101085544,1.11829639,112650.0,112640.0,1e-08]
[1756101086002,1.12129639,112650.0,112640.0,1e-08]
[1756101086216,1.12029639,112650.0,112640.0,1e-08]
[1756101086878,1.12329639,112650.0,112640.0,1e-08]
[1756101088805,0.96877639,112650.0,112640.0,1e-08]
[1756101089026,1.12273639,112650.0,112640.0,1e-08]
[1756101089238,1.12269952,112650.0,112640.0,1e-08]
[1756101089459,0.96877952,112650.0,112640.0,1e-08]
[1756101090119,1.12265952,112650.0,112640.0,1e-08]
[1756101093219,5.84385252,112650.0,112640.0,1e-08]
[1756101093423,5.86681665,112650.0,112640.0,1e-08]
[1756101093628,5.84385252,112650.0,112640.0,1e-08]
[1756101094256,5.84385335,112650.0,112640.0,1e-08]
[1756101094453,0.34,112630.0,112620.0,1e-08]
[1756101094667,0.67169258,112630.0,112620.0,0.00206001]
[1756101094867,1.6553809,112630.0,112620.0,0.00206001]
[1756101095082,1.69597896,112630.0,112620.0,0.00206001]
[1756101095757,1.69697896,112630.0,112620.0,0.00206001]
[1756101095948,1.69797896,112630.0,112620.0,0.00206001]
[1756101096146,0.56017064,112630.0,112620.0,0.00206001]
[1756101096346,1.69909896,112630.0,112620.0,0.00206001]
[1756101096620,1.54385896,112630.0,112620.0,0.00502001]
[1756101096790,1.73832478,112630.0,112620.0,0.00502001]
[1756101098388,1.75489127,112630.0,112620.0,0.00502001]
[1756101100216,1.74099321,112630.0,112620.0,0.00502001]
[1756101102693,1.58575321,112630.0,112620.0,0.00502001]
[1756101102893,1.74091321,112630.0,112620.0,0.00502001]
[1756101103503,1.75481034,112630.0,112620.0,0.00502001]
[1756101104304,1.75481285,112630.0,112620.0,0.00502001]
[1756101104907,1.59965285,112630.0,112620.0,0.00502001]
[1756101105493,1.75481285,112630.0,112620.0,0.00502001]
[1756101106358,1.73824385,112630.0,112620.0,0.00502001]
[1756101107407,1.7547411,112630.0,112620.0,0.00502001]
[1756101107899,0.77105278,112630.0,112620.0,0.00502001]
[1756101108109,1.7547011,112630.0,112620.0,0.00502001]
[1756101109350,1.5996611,112630.0,112620.0,0.00502001]
[1756101109562,1.73812385,112630.0,112620.0,0.00502001]
[1756101110483,0.75439553,112630.0,112620.0,0.10502001]
[1756101110691,1.39808385,112630.0,112620.0,0.20244676]
[1756101110911,0.20527258,112630.0,112620.0,0.20244676]
[1756101111114,0.36027258,112630.0,112620.0,0.38003511]
[1756101111347,0.36127258,112630.0,112620.0,0.38003511]
[1756101111583,0.33457258,112630.0,112620.0,0.38003511]
[1756101111813,0.33357258,112630.0,112620.0,0.38003511]
[1756101112056,0.33257258,112630.0,112620.0,0.38003511]
[1756101112303,0.33257258,112630.0,112620.0,0.38103511]
[1756101112554,1.34293813,112640.0,112630.0,0.1]
[1756101112777,1.34293813,112640.0,112630.0,0.23000826]
[1756101113022,0.17755681,112640.0,112630.0,0.23000826]
[1756101113256,1.31628513,112640.0,112630.0,0.23000826]
[1756101113977,1.31628513,112640.0,112630.0,0.23100826]
[1756101115171,1.31620513,112640.0,112630.0,0.23100826]
[1756101117020,0.33251681,112640.0,112630.0,0.23100826]
[1756101117230,1.31620513,112640.0,112630.0,0.23100826]
[1756101118166,1.31604513,112640.0,112630.0,0.23100826]
[1756101118455,0.33235681,112640.0,112630.0,0.23100826]
[1756101118657,1.31604513,112640.0,112630.0,0.23100826]
[1756101121125,0.33235681,112640.0,112630.0,0.23100826]
[1756101121333,0.17755681,112640.0,112630.0,0.23100826]
[1756101121598,0.17755681,112640.0,112630.0,0.40858084]
[1756101121818,0.1865034,112650.0,112640.0,0.1]
[1756101122066,0.1865034,112650.0,112640.0,0.23258758]
[1756101122276,0.1865034,112650.0,112640.0,0.41216455]
[1756101122908,0.17762635,112650.0,112640.0,0.41216455]
[1756101123122,8.53e-05,112650.0,112640.0,0.43161357]
[1756101123348,1.16597517,112660.0,112650.0,0.17754105]
[1756101123575,1.16597517,112660.0,112650.0,0.31067246]
[1756101123801,1.16597517,112660.0,112650.0,0.13627141]
[1756101124036,0.98368832,112660.0,112650.0,0.41493181]
[1756101124254,0.18639892,112670.0,112660.0,0.1]
[1756101124462,0.1864844,112670.0,112660.0,0.19200475]
[1756101124690,0.1864844,112670.0,112660.0,0.233386]
[1756101125807,1.17017272,112670.0,112660.0,0.233386]
[1756101126226,1.17223272,112670.0,112660.0,0.230246]
[1756101126504,1.17548272,112670.0,112660.0,0.18886475]
[1756101126987,1.17548272,112670.0,112660.0,0.18688475]
[1756101127402,1.17548272,112670.0,112660.0,0.18886475]
[1756101128263,1.17223272,112670.0,112660.0,0.18886475]
[1756101129919,0.1864844,112670.0,112660.0,0.19179475]
[1756101130120,1.17017272,112670.0,112660.0,0.22872823]
[1756101131834,1.17230272,112670.0,112660.0,0.22579823]
[1756101132897,1.17530272,112670.0,112660.0,0.22579823]
[1756101133115,1.17230272,112670.0,112660.0,0.22579823]
[1756101133327,1.17530272,112670.0,112660.0,0.22579823]
[1756101133737,1.17230272,112670.0,112660.0,0.22579823]
[1756101135023,1.17530272,112670.0,112660.0,0.22579823]
[1756101137490,1.17230272,112670.0,112660.0,0.22579823]
[1756101137712,1.17530272,112670.0,112660.0,0.22579823]
[1756101138177,1.17530272,112670.0,112660.0,0.18688475]
[1756101138406,1.20198772,112670.0,112660.0,0.18688475]
[1756101138650,0.17754105,112650.0,112640.0,0.01744902]
[1756101138882,0.17755681,112640.0,112630.0,0.00293]
[1756101139111,1.16124513,112640.0,112630.0,0.12237902]
[1756101139386,1.16337513,112640.0,112630.0,0.12243776]
[1756101139614,1.16637513,112640.0,112630.0,0.18688475]
[1756101140064,1.16637513,112640.0,112630.0,0.19088475]
[1756101140291,1.16637513,112640.0,112630.0,0.18688475]
[1756101140755,1.16637513,112640.0,112630.0,0.18888475]
[1756101141617,1.16637513,112640.0,112630.0,0.19188475]
[1756101141795,1.16637513,112640.0,112630.0,0.22912501]
[1756101142001,0.00513,112640.0,112630.0,0.22912501]
[1756101142216,1.16914945,112640.0,112630.0,0.22912501]
[1756101142420,1.16637513,112640.0,112630.0,0.22912501]
[1756101142660,0.17968681,112640.0,112630.0,0.23112501]
[1756101142882,0.17968681,112640.0,112630.0,0.23405501]
[1756101143091,1.16337513,112640.0,112630.0,0.23112501]
[1756101143323,1.16637513,112640.0,112630.0,0.22912501]
[1756101143541,1.16637513,112640.0,112630.0,0.12912501]
[1756101143761,2.15006345,112640.0,112630.0,0.005]
[1756101144184,2.17675745,112640.0,112630.0,0.005]
[1756101144622,2.17675745,112640.0,112630.0,0.003]
[1756101144833,0.17757258,112630.0,112620.0,0.10000001]
[1756101145035,1.1633909,112630.0,112620.0,0.18688476]
[1756101145243,1.1663909,112630.0,112620.0,0.20790624]
[1756101145681,1.1930839,112630.0,112620.0,0.20790624]
[1756101145888,0.20639558,112630.0,112620.0,0.18888476]
[1756101146093,1.19313202,112630.0,112620.0,0.18688476]
[1756101147383,1.19313202,112630.0,112620.0,0.18788476]
[1756101148062,1.19313202,112630.0,112620.0,0.18688476]
[1756101148281,0.97102168,112630.0,112620.0,0.21083624]
[1756101148511,1.14859426,112630.0,112620.0,0.21083624]
[1756101148718,1.14859426,112630.0,112620.0,0.20883624]
[1756101148928,1.14859426,112630.0,112620.0,0.21083624]
[1756101151008,1.14859426,112630.0,112620.0,0.20590624]
[1756101152255,0.1797507,112630.0,112620.0,0.20590624]
[1756101152463,1.16343902,112630.0,112620.0,0.20590624]
[1756101153826,1.16343902,112630.0,112620.0,0.01902149]
[1756101154032,1.16499902,112630.0,112620.0,1e-08]
[1756101154232,1.16343902,112630.0,112620.0,1e-08]
[1756101154864,1.19013502,112630.0,112620.0,1e-08]
[1756101156247,1.19169502,112630.0,112620.0,1e-08]
[1756101156665,1.53169502,112630.0,112620.0,1e-08]
[1756101157893,1.54403211,112630.0,112620.0,1e-08]
[1756101158347,1.54403211,112630.0,112620.0,0.00493001]
[1756101158963,1.54403211,112630.0,112620.0,1e-08]
[1756101160242,1.54559211,112630.0,112620.0,1e-08]
[1756101162245,1.53169502,112630.0,112620.0,1e-08]
[1756101163349,1.53013502,112630.0,112620.0,1e-08]
[1756101165301,1.5440326,112630.0,112620.0,1e-08]
[1756101173201,1.53013502,112630.0,112620.0,1e-08]
[1756101175367,1.54403255,112630.0,112620.0,1e-08]
[1756101177350,1.54559255,112630.0,112620.0,1e-08]
[1756101179296,1.54659255,112630.0,112620.0,1e-08]
[1756101179510,1.54759255,112630.0,112620.0,1e-08]
[1756101179729,1.54659255,112630.0,112620.0,1e-08]
[1756101180226,1.54759255,112630.0,112620.0,1e-08]
[1756101180701,1.53369502,112630.0,112620.0,1e-08]
[1756101181194,1.62057977,112630.0,112620.0,1e-08]
[1756101182231,1.77357977,112630.0,112620.0,1e-08]
[1756101182663,1.78187236,112630.0,112620.0,1e-08]
[1756101184158,1.79577077,112630.0,112620.0,1e-08]
[1756101184372,1.79577047,112630.0,112620.0,1e-08]
[1756101185062,1.88264012,112630.0,112620.0,1e-08]
[1756101186958,1.79577047,112630.0,112620.0,1e-08]
[1756101187370,1.79421047,112630.0,112620.0,1e-08]
[1756101188015,1.79578047,112630.0,112620.0,1e-08]
[1756101188218,1.64278047,112630.0,112620.0,1e-08]
[1756101188422,1.79570047,112630.0,112620.0,1e-08]
[1756101188663,1.81071087,112630.0,112620.0,1e-08]
[1756101188910,2.25911087,112630.0,112620.0,1e-08]
[1756101190500,2.25910726,112630.0,112620.0,1e-08]
[1756101191333,2.25689726,112630.0,112620.0,0.00498001]
[1756101191737,2.25894726,112630.0,112620.0,0.00498001]
[1756101192165,2.25894726,112630.0,112620.0,0.00297001]
[1756101192389,2.24236787,112630.0,112620.0,1e-08]
[1756101193216,2.22846946,112630.0,112620.0,1e-08]
[1756101193823,2.07562946,112630.0,112620.0,1e-08]
[1756101194023,2.22637946,112630.0,112620.0,0.00498001]
[1756101194465,2.07547946,112630.0,112620.0,0.00498001]
[1756101194638,2.22823946,112630.0,112620.0,0.00498001]
[1756101195063,2.22633946,112630.0,112620.0,0.00498001]
[1756101195273,2.22823946,112630.0,112620.0,1e-08]
[1756101195461,2.21994977,112630.0,112620.0,1e-08]
[1756101196324,2.21994977,112630.0,112620.0,0.00297001]
[1756101196508,2.233808,112630.0,112620.0,0.00498001]
[1756101196740,2.233808,112630.0,112620.0,1e-08]
[1756101199070,2.14494325,112630.0,112620.0,0.00498001]
[1756101201858,1.16125493,112630.0,112620.0,0.00498001]
[1756101202064,2.13104502,112630.0,112620.0,0.00498001]
[1756101203282,1.97840502,112630.0,112620.0,0.00498001]
[1756101203713,0.9947167,112630.0,112620.0,0.00498001]
[1756101203953,2.13104502,112630.0,112620.0,0.10498001]
[1756101204174,2.13104502,112630.0,112620.0,0.1156301]
[1756101205273,2.14494225,112630.0,112620.0,0.1156301]
[1756101206423,1.99230225,112630.0,112620.0,0.1156301]
[1756101206644,1.69650225,112630.0,112620.0,0.1156301]
[1756101208974,1.20390225,112630.0,112620.0,0.3801032]
[1756101209196,1.20390225,112630.0,112620.0,0.20251485]
[1756101209627,1.20290225,112630.0,112620.0,0.20251485]
[1756101209825,1.20190225,112630.0,112620.0,0.20251485]
[1756101210029,1.20290225,112630.0,112620.0,0.20251485]
[1756101211234,1.18900502,112630.0,112620.0,0.20251485]
[1756101211427,1.18800502,112630.0,112620.0,0.20251485]
[1756101211641,1.18800502,112630.0,112620.0,0.3811032]
[1756101211871,1.18800502,112630.0,112620.0,0.20451485]
[1756101212286,1.18800502,112630.0,112620.0,0.3821032]
[1756101212714,0.02674412,112630.0,112620.0,0.3821032]
[1756101212922,0.1776207,112630.0,112620.0,0.3821032]
[1756101213139,1.16130902,112630.0,112620.0,0.3821032]
[1756101213351,0.98373644,112630.0,112620.0,0.3821032]
[1756101215311,1.16130902,112630.0,112620.0,0.3821032]
[1756101217775,4.812e-05,112630.0,112620.0,0.3821032]
[1756101217977,0.98373644,112630.0,112620.0,0.3821032]
[1756101218957,1.16130902,112630.0,112620.0,0.3821032]
[1756101219403,0.98373644,112630.0,112620.0,0.3821032]
[1756101220347,1.16130902,112630.0,112620.0,0.3821032]
[1756101220548,1.16130902,112630.0,112620.0,0.5343432]
[1756101220760,0.98373644,112630.0,112620.0,0.5343432]
[1756101222411,1.16499902,112630.0,112620.0,0.18888476]
[1756101222622,1.16328902,112630.0,112620.0,0.18888476]
[1756101223467,1.16499902,112630.0,112620.0,0.18888476]
[1756101223887,1.19169302,112630.0,112620.0,0.18888476]
[1756101224510,1.18998302,112630.0,112620.0,0.18888476]
[1756101224744,1.18998302,112630.0,112620.0,0.20813024]
[1756101225695,1.34406302,112630.0,112620.0,0.20813024]
[1756101230210,1.34406302,112630.0,112620.0,0.00200001]
[1756101230414,1.34577302,112630.0,112620.0,0.00200001]
[1756101231244,1.68577302,112630.0,112620.0,0.00200001]
[1756101234444,1.69967038,112630.0,112620.0,0.00200001]
[1756101237558,1.76795038,112630.0,112620.0,0.00200001]
[1756101237861,1.94170478,112630.0,112620.0,0.00200001]
[1756101238287,1.94170478,112630.0,112620.0,0.00100001]
[1756101238489,1.85483513,112630.0,112620.0,0.00100001]
[1756101238907,1.85483513,112630.0,112620.0,1e-08]
[1756101239115,1.85583513,112630.0,112620.0,1e-08]
[1756101240147,1.85683513,112630.0,112620.0,1e-08]
[1756101240573,1.85631513,112630.0,112620.0,1e-08]
[1756101240988,1.85460513,112630.0,112620.0,1e-08]
[1756101241193,1.85631513,112630.0,112620.0,1e-08]
[1756101242714,1.84241777,112630.0,112620.0,1e-08]
[1756101244090,1.92928742,112630.0,112620.0,1e-08]
[1756101244911,1.84241777,112630.0,112620.0,1e-08]
[1756101246291,1.70275638,112630.0,112620.0,1e-08]
[1756101246504,1.85615638,112630.0,112620.0,1e-08]
[1756101246919,1.70275638,112630.0,112620.0,1e-08]
[1756101247174,1.85615638,112630.0,112620.0,1e-08]
[1756101247376,1.67853568,112630.0,112620.0,1e-08]
[1756101247623,1.85610826,112630.0,112620.0,1e-08]
[1756101248781,1.93065628,112630.0,112620.0,1e-08]
[1756101249018,0.94696796,112630.0,112620.0,1e-08]
[1756101249259,1.93065628,112630.0,112620.0,1e-08]
[1756101249511,1.77725628,112630.0,112620.0,1e-08]
[1756101249758,1.87254556,112630.0,112620.0,1e-08]
[1756101250813,0.88881724,112630.0,112620.0,1e-08]
[1756101251037,1.87250556,112630.0,112620.0,1e-08]
[1756101252682,1.87254556,112630.0,112620.0,1e-08]
[1756101252891,1.95941521,112630.0,112620.0,1e-08]
[1756101253688,1.9455166,112630.0,112620.0,1e-08]
[1756101254335,1.95379771,112630.0,112620.0,1e-08]
[1756101254952,2.93748603,112630.0,112620.0,1e-08]
[1756101255159,7.68164316,112630.0,112620.0,1e-08]
[1756101255363,7.5306871,112630.0,112620.0,1e-08]
[1756101255572,7.7840871,112630.0,112620.0,1e-08]
[1756101255997,7.7830871,112630.0,112620.0,1e-08]
[1756101256209,7.7840871,112630.0,112620.0,1e-08]
[1756101256421,7.7850871,112630.0,112620.0,1e-08]
[1756101256931,7.6445869,112630.0,112620.0,1e-08]
[1756101257179,7.7979869,112630.0,112620.0,1e-08]
[1756101257384,7.7989869,112630.0,112620.0,1e-08]
[1756101257604,7.6989947,112630.0,112620.0,1e-08]
[1756101257810,0.17760412,112610.0,112600.0,0.0039157]
[1756101258016,2.31683806,112610.0,112600.0,0.0060357]
[1756101258225,2.31481806,112610.0,112600.0,0.0092257]
[1756101258657,2.35543086,112610.0,112600.0,0.0092257]
[1756101259289,2.3554309,112610.0,112600.0,0.0092257]
[1756101259496,2.3574109,112610.0,112600.0,0.0102257]
[1756101260185,2.3554309,112610.0,112600.0,0.0102257]
[1756101260456,2.3554309,112610.0,112600.0,0.0112257]
[1756101261169,2.34351083,112610.0,112600.0,0.0112257]
[1756101261596,2.34153083,112610.0,112600.0,0.0112257]
[1756101262017,2.34141083,112610.0,112600.0,0.0112257]
[1756101262238,1.35772251,112610.0,112600.0,0.0112257]
[1756101264500,1.37162222,112610.0,112600.0,0.0112257]
[1756101265797,2.35531054,112610.0,112600.0,0.0112257]
[1756101266888,2.35729054,112610.0,112600.0,0.0112257]
[1756101268544,2.35731074,112610.0,112600.0,0.0091057]
[1756101268958,2.35731052,112610.0,112600.0,0.0091057]
[1756101269578,2.78418017,112610.0,112600.0,0.0059157]
[1756101270191,2.7056034,112610.0,112600.0,0.0059157]
[1756101270400,2.72470934,112610.0,112600.0,0.0091057]
[1756101271017,2.72470934,112610.0,112600.0,0.0059157]
[1756101272163,2.72236934,112610.0,112600.0,0.0112257]
[1756101272444,2.7032634,112610.0,112600.0,0.0112257]
[1756101272649,0.72759388,112610.0,112600.0,0.0112257]
[1756101272846,1.7112822,112610.0,112600.0,0.0112257]
[1756101274776,1.7112422,112610.0,112600.0,0.0112257]
[1756101274973,1.71124446,112610.0,112600.0,0.0112257]
[1756101275185,1.21848446,112610.0,112600.0,0.01588827]
[1756101275391,1.37124446,112610.0,112600.0,0.01588827]
[1756101275595,1.71124446,112610.0,112600.0,0.01588827]
[1756101276492,1.71124446,112610.0,112600.0,0.0112257]
[1756101278034,1.77956446,112610.0,112600.0,0.0112257]
[1756101278443,1.7795706,112610.0,112600.0,0.0112257]
[1756101279284,1.77957114,112610.0,112600.0,0.0112257]
[1756101280312,1.76305615,112610.0,112600.0,0.0112257]
[1756101280514,1.76301615,112610.0,112600.0,0.02588827]
[1756101285121,1.61021615,112610.0,112600.0,0.02588827]
[1756101285345,1.76277615,112610.0,112600.0,0.02588827]
[1756101286633,1.61021615,112610.0,112600.0,0.21277302]
[1756101286849,1.20189615,112610.0,112600.0,0.21277302]
[1756101287054,1.32767215,112610.0,112600.0,0.39039291]
[1756101287744,1.17519215,112610.0,112600.0,0.39039291]
[1756101287951,1.32767215,112610.0,112600.0,0.39039291]
[1756101289027,1.32763215,112610.0,112600.0,0.39039291]
[1756101290916,1.32763215,112610.0,112600.0,0.38939291]
[1756101291095,1.31373244,112610.0,112600.0,0.38939291]
[1756101292190,1.31377244,112610.0,112600.0,0.38939291]
[1756101292727,1.31381244,112610.0,112600.0,0.39139291]
[1756101292937,1.31381244,112610.0,112600.0,0.39039291]
[1756101293153,1.31381244,112610.0,112600.0,0.39339291]
[1756101296787,1.31381244,112610.0,112600.0,0.41119291]
[1756101297016,1.31381244,112610.0,112600.0,0.39339291]
[1756101297462,0.33012412,112610.0,112600.0,0.39339291]
[1756101297705,1.31381244,112610.0,112600.0,0.39339291]
[1756101300196,0.65268735,112620.0,112600.0,0.39339291]
[1756101300417,0.65268735,112620.0,112610.0,0.36771887]
[1756101300684,0.80496735,112620.0,112610.0,0.42680257]
[1756101300887,0.80694735,112620.0,112610.0,0.24919845]
[1756101301142,0.80694735,112620.0,112610.0,0.24398845]
[1756101301367,0.78024835,112620.0,112610.0,0.24398845]
[1756101301590,2.99997719,112620.0,112610.0,0.24398845]
[1756101302901,2.99997719,112620.0,112610.0,0.24498845]
[1756101303577,3.00168719,112620.0,112610.0,0.001]
[1756101303785,3.00168719,112620.0,112610.0,0.002]
[1756101304054,4.47824961,112620.0,112610.0,0.002]
[1756101304507,4.47824961,112620.0,112610.0,0.001]
[1756101304714,3.36838519,112620.0,112610.0,0.001]
[1756101304920,0.17760412,112610.0,112600.0,0.1039157]
[1756101305124,1.43978854,112610.0,112600.0,0.20505502]
[1756101305548,1.31666307,112610.0,112600.0,0.20505502]
[1756101305771,1.31666307,112610.0,112600.0,0.01817027]
[1756101305982,1.32035307,112610.0,112600.0,0.0039157]
[1756101306652,1.32035307,112610.0,112600.0,0.0089157]
[1756101306828,1.32035307,112610.0,112600.0,0.0059157]
[1756101307043,1.31864307,112610.0,112600.0,0.0059157]
[1756101307250,1.31864307,112610.0,112600.0,0.0069157]
[1756101307454,1.31864307,112610.0,112600.0,0.0059157]
[1756101307685,1.31864307,112610.0,112600.0,0.0069157]
[1756101308547,1.31864307,112610.0,112600.0,0.0049157]
[1756101308695,1.31864307,112610.0,112600.0,0.0059157]
[1756101308900,1.34534407,112610.0,112600.0,0.0059157]
[1756101311263,2.67208302,112610.0,112600.0,0.0059157]
[1756101316080,2.67379302,112610.0,112600.0,0.0059157]
[1756101316723,2.69040151,112610.0,112600.0,0.0059157]
[1756101316944,2.68869151,112610.0,112600.0,0.0049157]
[1756101317353,2.67208302,112610.0,112600.0,0.0049157]
[1756101317763,2.67208302,112610.0,112600.0,0.0039157]
[1756101317990,2.70258745,112610.0,112600.0,0.0039157]
[1756101318190,2.68598264,112610.0,112600.0,0.0039157]
[1756101319554,2.68769264,112610.0,112600.0,0.0039157]
[1756101320227,2.68598264,112610.0,112600.0,0.0039157]